bitfinex/quotes_SOLUSD_20240623
["timestamp","ask_amount","ask_price","bid_price","bid_amount"]
[1719150634492,7.79908036,133.76,133.73,100.0]
[1719150634798,16.0314,133.79,133.73,100.0]
[1719150634972,7.78633147,133.78,133.73,100.0]
[1719150636204,7.476,133.76,133.75,100.0]
[1719150636382,7.4771,133.74,133.73,100.0]
[1719150640116,14.9751,133.74,133.73,100.0]
[1719150640314,7.4771,133.74,133.73,100.0]
[1719150640491,14.9751,133.74,133.73,100.0]
[1719150641589,7.4771,133.74,133.73,100.0]
[1719150642411,14.9751,133.74,133.73,100.0]
[1719150642808,7.4771,133.74,133.73,100.0]
[1719150645930,14.974,133.76,133.75,100.0]
[1719150646131,7.476,133.76,133.75,100.0]
[1719150646331,14.974,133.76,133.75,100.0]
[1719150646643,7.476,133.76,133.75,100.0]
[1719150647738,7.4771,133.74,133.73,100.0]
[1719150650633,14.9751,133.74,133.73,100.0]
[1719150650832,7.4771,133.74,133.73,100.0]
[1719150651450,14.9751,133.74,133.73,100.0]
[1719150651650,7.4771,133.74,133.73,100.0]
[1719150663562,26.46855379,133.76,133.71,100.0]
[1719150663740,18.6927,133.75,133.71,100.0]
[1719150664360,7.4783,133.72,133.71,100.0]
[1719150673070,7.4783,133.72,133.71,100.0]
[1719150674559,7.4779,133.73,133.71,100.0]
[1719150675870,7.4783,133.72,133.71,100.0]
[1719150700096,7.4794,133.7,133.69,100.0]
[1719150704391,7.4791,133.71,133.69,100.0]
[1719150704789,15.27506159,133.72,133.71,100.0]
[1719150705010,7.4784,133.72,133.71,100.0]
[1719150716508,7.4775,133.74,133.73,100.0]
[1719150716815,7.4775,133.74,133.73,200.0]
[1719150719204,18.6888,133.77,133.75,100.0]
[1719150719589,7.476,133.76,133.75,100.0]
[1719150725617,18.6888,133.77,133.73,200.0]
[1719150725990,7.4771,133.74,133.73,200.0]
[1719150727537,7.4767,133.75,133.73,200.0]
[1719150730312,7.4762,133.76,133.75,100.0]
[1719150732922,7.78404831,133.78,133.73,100.0]
[1719150732923,18.6889,133.77,133.73,100.0]
[1719150733296,7.79210925,133.76,133.73,100.0]
[1719150733517,7.4771,133.74,133.73,100.0]
[1719150734314,7.4767,133.75,133.73,100.0]
[1719150734528,7.79210925,133.76,133.73,100.0]
[1719150734819,15.26820925,133.76,133.73,100.0]
[1719150744324,7.79210925,133.76,133.75,100.0]
[1719150744623,7.4757,133.77,133.75,100.0]
[1719150746206,7.476,133.76,133.75,100.0]
[1719150747031,7.4755,133.77,133.75,100.0]
[1719150751340,7.476,133.76,133.75,100.0]
[1719150751933,18.6877,133.78,133.73,100.0]
[1719150752433,7.4768,133.75,133.73,100.0]
[1719150756737,7.4762,133.76,133.73,100.0]
[1719150758422,15.2437715,133.79,133.74,7.4768]
[1719150758629,7.7690715,133.79,133.75,100.0]
[1719150758822,15.2434715,133.79,133.75,200.0]
[1719150759027,7.7690715,133.79,133.75,200.0]
[1719150759236,7.475,133.78,133.75,200.0]
[1719150760713,15.2436715,133.79,133.77,100.0]
[1719150761138,15.2436715,133.79,133.77,200.0]
[1719150761741,7.4749,133.78,133.77,200.0]
[1719150764247,15.2434715,133.79,133.77,200.0]
[1719150764423,7.4739,133.8,133.79,100.0]
[1719150770443,7.4739,133.8,133.79,200.0]
[1719150771923,7.4731,133.82,133.79,200.0]
[1719150772137,7.76981497,133.83,133.79,200.0]
[1719150772336,7.4738,133.8,133.79,200.0]
[1719150773048,7.76981497,133.83,133.81,100.0]
[1719150773441,7.4727,133.82,133.81,100.0]
[1719150776551,7.4722,133.83,133.81,200.0]
[1719150776733,18.6761,133.87,133.84,100.0]
[1719150776929,7.471,133.85,133.84,100.0]
[1719150780250,7.4716,133.84,133.83,100.0]
[1719150785559,7.4716,133.84,133.82,100.0]
[1719150790359,7.4721,133.83,133.82,100.0]
[1719150790662,7.4718,133.84,133.82,100.0]
[1719150792863,18.6781,133.85,133.8,100.0]
[1719150793264,26.48577188,133.85,133.8,100.0]
[1719150794069,7.4728,133.82,133.8,100.0]
[1719150795547,26.48577188,133.85,133.78,100.0]
[1719150795548,18.6805,133.83,133.78,100.0]
[1719150795745,7.4739,133.8,133.78,100.0]
[1719150796573,16.4127,133.84,133.8,100.0]
[1719150796982,7.4732,133.82,133.8,100.0]
[1719150797278,7.4732,133.81,133.8,100.0]
[1719150797472,7.4732,133.81,133.78,100.0]
[1719150798575,7.4738,133.8,133.78,100.0]
[1719150802948,7.4744,133.79,133.78,100.0]
[1719150803760,7.474,133.8,133.78,100.0]
[1719150809755,7.4744,133.79,133.78,100.0]
[1719150812246,7.474,133.8,133.78,100.0]
[1719150815582,7.78307135,133.81,133.77,100.0]
[1719150815583,24.9216,133.86,133.8,100.0]
[1719150815785,7.78712523,133.84,133.8,100.0]
[1719150815964,7.473,133.82,133.8,100.0]
[1719150816160,7.4732,133.81,133.8,100.0]
[1719150818079,7.4744,133.79,133.78,100.0]
[1719150818274,7.4739,133.8,133.78,100.0]
[1719150819990,7.4744,133.79,133.78,100.0]
[1719150821086,7.474,133.8,133.78,100.0]
[1719150826390,7.474,133.8,133.79,100.0]
[1719150829302,7.4744,133.79,133.78,100.0]
[1719150831599,7.474,133.8,133.78,100.0]
[1719150832802,7.4744,133.79,133.78,100.0]
[1719150836896,7.474,133.8,133.78,100.0]
[1719150843810,7.4744,133.79,133.78,100.0]
[1719150859042,7.4744,133.79,133.78,200.0]
[1719150859536,18.6814,133.83,133.8,100.0]
[1719150859716,7.4732,133.81,133.8,100.0]
[1719150864015,7.4744,133.79,133.78,200.0]
[1719150864224,7.4744,133.79,133.78,100.0]
[1719150891670,7.77453654,133.84,133.81,100.0]
[1719150891842,7.4727,133.82,133.81,100.0]
[1719150911086,7.4738,133.8,133.79,100.0]
[1719150915576,7.4727,133.82,133.81,100.0]
[1719150921400,7.4727,133.82,133.81,200.0]
[1719150922906,56.0271,133.87,133.84,100.0]
[1719150923207,63.80347194,133.87,133.84,100.0]
[1719150923712,7.471,133.85,133.84,100.0]
[1719150959637,7.4721,133.83,133.82,100.0]
[1719150960225,7.4718,133.84,133.82,100.0]
[1719150962437,7.4712,133.85,133.84,100.0]
[1719150968657,7.77255395,133.87,133.84,100.0]
[1719150968860,7.4706,133.86,133.84,100.0]
[1719150969157,18.6716,133.9,133.86,100.0]
[1719150969457,26.43331758,133.9,133.86,100.0]
[1719150969962,7.4701,133.87,133.86,100.0]
[1719150971356,7.4701,133.87,133.85,100.0]
[1719150971536,7.4704,133.86,133.85,100.0]
[1719150971935,7.471,133.85,133.84,100.0]
[1719150977068,18.6763,133.86,133.82,100.0]
[1719150978141,7.4721,133.83,133.82,100.0]
[1719150978357,15.4105,133.88,133.8,100.0]
[1719150978358,7.4732,133.81,133.8,100.0]
[1719150988567,7.4721,133.83,133.82,100.0]
[1719150990757,7.76606649,133.84,133.8,100.0]
[1719150990953,7.4732,133.81,133.8,100.0]
[1719150992176,7.76606649,133.84,133.78,100.0]
[1719150992479,7.4744,133.79,133.78,100.0]
[1719150992982,7.474,133.8,133.78,100.0]
[1719151000978,7.474,133.8,133.77,100.0]
[1719151001369,7.474,133.8,133.79,100.0]
[1719151018597,7.4749,133.78,133.77,100.0]
[1719151019178,7.4749,133.78,133.73,100.0]
[1719151019179,18.6876,133.78,133.73,100.0]
[1719151020179,7.4771,133.74,133.73,100.0]
[1719151021084,7.4768,133.75,133.73,100.0]
[1719151022677,7.4771,133.74,133.73,100.0]
[1719151023487,7.4768,133.75,133.73,100.0]
[1719151026394,18.6876,133.78,133.73,200.0]
[1719151026581,18.6876,133.78,133.76,100.0]
[1719151026896,7.4755,133.77,133.76,100.0]
[1719151027785,7.4744,133.79,133.78,100.0]
[1719151035400,7.4755,133.77,133.76,100.0]
[1719151035710,7.4766,133.75,133.74,100.0]
[1719151063413,18.6886,133.78,133.76,100.0]
[1719151064807,7.4755,133.77,133.76,100.0]
[1719151073125,7.4766,133.75,133.74,100.0]
[1719151112991,7.4766,133.75,133.74,200.0]
[1719151113160,18.6874,133.78,133.77,100.0]
[1719151114056,26.1623,133.78,133.77,100.0]
[1719151122106,7.4749,133.78,133.77,100.0]
[1719151125713,15.23955676,133.81,133.8,100.0]
[1719151125882,7.4732,133.81,133.8,100.0]
[1719151131886,7.4744,133.79,133.78,100.0]
[1719151133681,26.1604,133.79,133.78,100.0]
[1719151135294,7.4755,133.77,133.76,100.0]
[1719151141412,7.4751,133.78,133.76,100.0]
[1719151142290,7.4755,133.77,133.76,100.0]
[1719151146914,7.4751,133.78,133.76,100.0]
[1719151152210,7.77008183,133.8,133.78,100.0]
[1719151152520,7.4744,133.79,133.78,100.0]
[1719151157316,7.476,133.76,133.75,100.0]
[1719151159312,7.76237576,133.79,133.75,100.0]
[1719151159313,7.4757,133.77,133.75,100.0]
[1719151159714,7.4757,133.77,133.72,7.4782]
[1719151159715,7.76237576,133.79,133.78,100.0]
[1719151159929,18.6846,133.8,133.78,100.0]
[1719151160230,7.4744,133.79,133.78,100.0]
[1719151175331,7.4755,133.77,133.76,100.0]
[1719151176409,7.4751,133.78,133.76,100.0]
[1719151190230,7.4755,133.77,133.76,100.0]
[1719151195454,7.4751,133.78,133.76,100.0]
[1719151196954,7.4755,133.77,133.76,100.0]
[1719151213852,7.4766,133.75,133.74,100.0]
[1719151221088,7.4755,133.77,133.76,100.0]
[1719151221378,15.25138722,133.78,133.76,100.0]
[1719151221948,7.4751,133.78,133.76,100.0]
[1719151224464,26.45246605,133.81,133.78,100.0]
[1719151225867,7.4744,133.79,133.78,100.0]
[1719151264291,26.1604,133.79,133.78,100.0]
[1719151264494,7.4755,133.77,133.76,100.0]
[1719151267385,26.46325087,133.78,133.74,100.0]
[1719151267386,7.4766,133.75,133.74,100.0]
[1719151293015,26.1624,133.78,133.77,100.0]
[1719151308329,7.4749,133.78,133.77,100.0]
[1719151310814,6.4749,133.78,133.77,100.0]
[1719151311126,7.77468551,133.81,133.8,100.0]
[1719151311428,7.4732,133.81,133.8,100.0]
[1719151319748,7.496,133.83,133.82,100.0]
[1719151320238,14.9681,133.83,133.82,100.0]
[1719151327045,7.4732,133.81,133.8,100.0]
[1719151334334,7.4729,133.82,133.8,100.0]
[1719151335129,14.9683,133.83,133.8,100.0]
[1719151335746,7.4727,133.82,133.8,100.0]
[1719151341853,7.496,133.83,133.8,100.0]
[1719151342043,7.4732,133.81,133.8,100.0]
[1719151346441,26.45774887,133.84,133.82,100.0]
[1719151348070,7.4721,133.83,133.82,100.0]
[1719151366476,7.4732,133.81,133.8,100.0]
[1719151366647,37.3625,133.83,133.78,100.0]
[1719151366849,26.1604,133.79,133.78,100.0]
[1719151368547,7.4744,133.79,133.78,100.0]
[1719151383370,7.77644303,133.81,133.8,100.0]
[1719151383666,7.496,133.82,133.8,100.0]
[1719151383861,15.26917808,133.82,133.8,100.0]
[1719151384872,18.6832,133.81,133.78,100.0]
[1719151385072,7.4744,133.79,133.78,100.0]
[1719151388980,27.4744,133.79,133.78,100.0]
[1719151389374,7.4755,133.77,133.76,100.0]
[1719151398986,26.46096806,133.8,133.78,100.0]
[1719151399376,7.4744,133.79,133.78,100.0]
[1719151409096,7.4732,133.81,133.8,100.0]
[1719151422042,18.6791,133.84,133.83,100.0]
[1719151422996,26.1507,133.84,133.83,100.0]
[1719151425028,7.4716,133.84,133.83,100.0]
[1719151434512,7.4727,133.82,133.81,100.0]
[1719151435527,7.4733,133.81,133.79,100.0]
[1719151435709,7.4738,133.8,133.79,100.0]
[1719151437050,7.4748,133.79,133.77,100.0]
[1719151437405,26.45876364,133.82,133.77,100.0]
[1719151437406,7.4749,133.78,133.77,100.0]
[1719151437823,14.9709,133.78,133.77,100.0]
[1719151438551,7.4749,133.78,133.77,100.0]
[1719151440253,7.4759,133.77,133.75,100.0]
[1719151443341,7.4752,133.78,133.75,100.0]
[1719151443544,7.4744,133.79,133.77,100.0]
[1719151444434,7.4749,133.78,133.77,100.0]
[1719151449345,26.45876364,133.82,133.79,100.0]
[1719151450033,33.93146364,133.82,133.81,100.0]
[1719151450225,26.1558,133.82,133.81,100.0]
[1719151450719,7.4727,133.82,133.81,100.0]
[1719151452834,7.4738,133.8,133.79,100.0]
[1719151456849,7.4734,133.81,133.79,100.0]
[1719151457838,26.45551069,133.84,133.77,16.1324]
[1719151457839,7.4728,133.82,133.81,100.0]
[1719151459551,26.45551069,133.84,133.79,100.0]
[1719151459755,7.4738,133.8,133.79,100.0]
[1719151460331,7.4735,133.81,133.79,100.0]
[1719151461032,26.45551069,133.84,133.79,100.0]
[1719151461033,7.4738,133.8,133.79,100.0]
[1719151462768,7.4734,133.81,133.79,100.0]
[1719151464146,7.77475297,133.82,133.81,100.0]
[1719151464336,7.4725,133.83,133.81,100.0]
[1719151464838,7.4718,133.84,133.81,100.0]
[1719151465261,7.4723,133.83,133.81,100.0]
[1719151466332,7.4727,133.82,133.81,100.0]
[1719151474169,18.6827,133.82,133.78,100.0]
[1719151474474,18.6827,133.82,133.75,6.0879]
[1719151474475,18.6827,133.82,133.76,100.0]
[1719151474670,7.4755,133.77,133.76,100.0]
[1719151502964,27.4755,133.77,133.76,100.0]
[1719151503395,7.4766,133.75,133.74,100.0]
[1719151506898,7.4777,133.73,133.72,100.0]
[1719151516877,15.25339449,133.73,133.72,100.0]
[1719151518881,7.4788,133.71,133.7,100.0]
[1719151523940,26.47019449,133.73,133.68,100.8650424]
[1719151524080,7.4799,133.69,133.68,100.8650424]
[1719151547345,15.25711495,133.7,133.68,100.8650424]
[1719151547541,7.77751495,133.7,133.68,100.8650424]
[1719151547928,7.4788,133.71,133.7,100.0]
[1719151557490,7.4799,133.69,133.68,100.8650424]
[1719151566954,15.24965397,133.72,133.7,100.0]
[1719151567155,7.4785,133.72,133.7,100.0]
[1719151567578,7.4788,133.71,133.7,100.0]
[1719151568086,27.4788,133.71,133.7,100.0]
[1719151569185,7.4788,133.71,133.7,100.0]
[1719151573377,7.4799,133.69,133.68,100.8650424]
[1719151595302,26.46297132,133.72,133.7,100.0]
[1719151595599,20.0,133.71,133.7,100.0]
[1719151595776,27.4788,133.71,133.7,100.0]
[1719151597305,7.4788,133.71,133.7,100.0]
[1719151599607,15.24333695,133.74,133.73,100.0]
[1719151599912,27.4771,133.74,133.73,100.0]
[1719151600791,7.4771,133.74,133.73,100.0]
[1719151618206,15.25678989,133.78,133.76,100.0]
[1719151618408,15.23788989,133.78,133.76,100.0]
[1719151618624,7.4751,133.78,133.76,100.0]
[1719151619211,7.4738,133.8,133.79,100.0]
[1719151624328,7.4749,133.78,133.77,100.0]
[1719151630629,27.4749,133.78,133.77,100.0]
[1719151639018,18.6888,133.77,133.73,100.0]
[1719151639229,20.0,133.76,133.73,100.0]
[1719151640057,7.4771,133.74,133.73,100.0]
[1719151640427,7.4768,133.75,133.73,100.0]
[1719151641254,7.4771,133.74,133.73,100.0]
[1719151650854,27.476,133.76,133.75,100.0]
[1719151651072,7.476,133.76,133.75,100.0]
[1719151669187,26.1661,133.76,133.75,100.0]
[1719151673066,7.4771,133.74,133.73,100.0]
[1719151673269,18.6901,133.76,133.71,100.0]
[1719151673270,7.4783,133.72,133.71,100.0]
[1719151674093,7.4794,133.7,133.69,100.0]
[1719151676493,43.5787,133.77,133.73,100.0]
[1719151676494,18.6915,133.76,133.73,100.0]
[1719151676669,7.4771,133.74,133.73,100.0]
[1719151676872,7.4783,133.72,133.71,100.0]
[1719151680394,7.4794,133.7,133.69,100.0]
[1719151685319,20.0,133.74,133.71,100.0]
[1719151685505,20.0,133.73,133.71,100.0]
[1719151686096,20.0,133.74,133.71,100.0]
[1719151686418,7.4785,133.72,133.71,100.0]
[1719151686619,7.4794,133.7,133.69,100.0]
[1719151696129,18.6945,133.73,133.72,100.0]
[1719151696329,38.6945,133.73,133.72,100.0]
[1719151696898,46.1722,133.73,133.72,100.0]
[1719151698128,7.4788,133.71,133.7,100.0]
[1719151698433,26.1759,133.71,133.7,100.0]
[1719151699123,46.1759,133.71,133.7,100.0]
[1719151701029,46.1759,133.71,133.68,0.8650424]
[1719151701030,7.4799,133.69,133.68,100.8650424]
[1719151706744,27.4788,133.71,133.7,100.0]
[1719151711352,7.4788,133.71,133.7,100.0]
[1719151718351,7.4799,133.69,133.68,0.8650424]
[1719151720427,27.4799,133.69,133.68,0.8650424]
[1719151723862,7.4799,133.69,133.68,0.8650424]
[1719151725345,7.4799,133.69,133.68,100.8650424]
[1719151732358,7.4799,133.69,133.68,0.8650424]
[1719151732359,27.4799,133.69,133.68,0.8650424]
[1719151763813,27.4799,133.69,133.68,4.24e-05]
[1719151764014,34.9739,133.69,133.68,4.24e-05]
[1719151764312,50.7972,133.69,133.68,4.24e-05]
[1719151765209,7.485,133.6,133.59,100.0]
[1719151772616,7.485,133.6,133.58,9.35986036]
[1719151772617,7.4855,133.59,133.58,9.35986036]
[1719151772795,26.1994,133.59,133.58,9.35986036]
[1719151772999,27.4855,133.59,133.58,9.35986036]
[1719151778017,7.4855,133.59,133.58,9.35986036]
[1719151790928,26.2053,133.56,133.55,100.0]
[1719151791102,7.4878,133.55,133.54,0.8650424]
[1719151793321,49.6803,133.55,133.54,0.8650424]
[1719151793544,43.2274,133.55,133.54,0.8650424]
[1719151793923,50.95883225,133.55,133.54,0.8650424]
[1719151794131,35.21923225,133.55,133.54,0.8650424]
[1719151800348,35.21923225,133.55,133.54,4.24e-05]
[1719151801237,6.4529,133.52,133.47,100.0]
[1719151801538,7.4928,133.46,133.45,100.0]
[1719151802425,26.225,133.46,133.45,100.0]
[1719151804819,7.494,133.44,133.43,100.0]
[1719151805347,18.7322,133.46,133.41,100.8650424]
[1719151805348,7.4951,133.42,133.41,100.8650424]
[1719151805731,18.7322,133.46,133.43,100.0]
[1719151805934,7.494,133.44,133.43,100.0]
[1719151811252,7.73641868,133.48,133.45,100.0]
[1719151811543,7.4928,133.46,133.45,100.0]
[1719151812533,7.5,133.51,133.49,100.0]
[1719151812848,7.4906,133.5,133.49,100.0]
[1719151817136,7.817242,133.53,133.52,100.0]
[1719151818054,15.306142,133.53,133.52,100.0]
[1719151819155,34.028442,133.53,133.52,100.0]
[1719151820354,15.306142,133.53,133.52,100.0]
[1719151820528,7.4889,133.53,133.52,100.0]
[1719151824669,14.9878,133.55,133.54,100.0]
[1719151825364,7.4878,133.55,133.54,100.0]
[1719151841670,15.30006701,133.59,133.58,100.0]
[1719151841854,7.4855,133.59,133.58,100.0]
[1719151843357,26.2034,133.57,133.56,100.0]
[1719151847877,7.4867,133.57,133.56,100.0]
[1719151867696,27.4867,133.57,133.56,100.0]
[1719151869781,7.4878,133.55,133.54,100.0]
[1719151869989,27.4878,133.55,133.54,100.0]
[1719151871108,7.4889,133.53,133.52,100.0]
[1719151872001,27.4889,133.53,133.52,100.0]
[1719151875180,7.49,133.51,133.5,100.0]
[1719151879009,7.4897,133.52,133.5,100.0]
[1719151883504,20.0,133.53,133.5,100.0]
[1719151883505,7.49,133.51,133.5,100.0]
[1719151884104,7.4897,133.52,133.5,100.0]
[1719151885609,7.81735703,133.54,133.52,100.0]
[1719151885812,20.0,133.53,133.52,100.0]
[1719151886112,7.49,133.51,133.5,100.0]
[1719151887196,7.4897,133.52,133.5,100.0]
[1719151888315,7.49,133.51,133.5,100.0]
[1719151889194,27.49,133.51,133.5,100.0]
[1719151893209,15.30565703,133.54,133.53,100.0]
[1719151893526,27.4883,133.54,133.53,100.0]
[1719151893692,7.4883,133.54,133.53,100.0]
[1719151895094,18.7169,133.57,133.55,100.0]
[1719151895323,27.4872,133.56,133.55,100.0]
[1719151896401,7.4883,133.54,133.53,100.0]
[1719151900915,7.4872,133.56,133.55,100.0]
[1719151916524,7.4872,133.56,133.44,100.0]
[1719151916525,7.4923,133.47,133.44,100.0]
[1719151916734,7.4934,133.45,133.44,100.0]
[1719151917036,27.4934,133.45,133.44,100.0]
[1719151918229,7.4945,133.43,133.42,100.0]
[1719151937975,7.4951,133.42,133.41,4.24e-05]
[1719151938143,72.4951,133.42,133.41,4.24e-05]
[1719151938552,80.32439708,133.42,133.41,4.24e-05]
[1719151942457,125.32439708,133.42,133.41,4.24e-05]
[1719151943556,80.32439708,133.42,133.41,4.24e-05]
[1719151955853,87.82439708,133.42,133.41,4.24e-05]
[1719151958155,18.7426,133.39,133.34,15.257]
[1719151958358,7.499,133.36,133.34,15.257]
[1719151958556,7.499,133.36,133.35,100.0]
[1719151959256,7.499,133.35,133.34,100.0]
[1719151960081,7.5001,133.33,133.32,106.5149]
[1719151960652,7.4997,133.34,133.32,106.5149]
[1719151960857,7.83116292,133.37,133.34,100.0]
[1719151960858,7.4992,133.35,133.34,100.0]
[1719151961556,7.4992,133.35,133.32,106.5149]
[1719151961557,7.5001,133.33,133.32,206.5149]
[1719151965979,7.4998,133.34,133.32,206.5149]
[1719151966878,7.5001,133.33,133.32,106.5149]
[1719151967483,7.4998,133.34,133.32,106.5149]
[1719151967955,7.5007,133.32,133.31,9.69827586]
[1719151968357,27.5007,133.32,133.31,9.69827586]
[1719151969164,35.33656948,133.32,133.31,9.69827586]
[1719151969786,27.5007,133.32,133.31,109.69827586]
[1719151970293,27.5007,133.32,133.31,9.69827586]
[1719151970596,26.0957,133.32,133.21,100.0]
[1719151970795,80.6262,133.31,133.23,200.0]
[1719151970959,7.5048,133.25,133.23,200.0]
[1719151971287,80.6262,133.31,133.2,100.0]
[1719151971288,7.5058,133.23,133.2,100.0]
[1719151971795,26.2703,133.23,133.2,100.0]
[1719151971969,18.7645,133.23,133.19,100.0]
[1719151972161,18.7645,133.23,133.2,100.0]
[1719151972362,7.5069,133.21,133.2,100.0]
[1719151972893,7.5059,133.23,133.22,100.0]
[1719151973101,7.5051,133.25,133.24,100.0]
[1719151973262,45.0,133.22,133.14,0.8650424]
[1719151973463,7.5103,133.15,133.14,0.8650424]
[1719151973666,52.5103,133.15,133.14,4.24e-05]
[1719151973886,72.5103,133.15,133.14,4.24e-05]
[1719151974457,7.5159,133.05,133.01,0.8650424]
[1719151974662,7.5159,133.05,133.04,5.03669137]
[1719151974861,82.5609,133.12,133.03,100.0]
[1719151974862,18.7849,133.09,133.03,100.0]
[1719151975060,7.5154,133.06,133.05,100.0]
[1719151975294,82.5609,133.12,133.01,100.0]
[1719151975476,82.5609,133.12,133.02,100.0]
[1719151975477,7.5171,133.03,133.02,100.0]
[1719151975657,7.5165,133.04,132.97,23.8724]
[1719151975863,7.5,133.22,133.06,100.0]
[1719151976207,20.0,133.14,133.05,106.314]
[1719151976397,20.0,133.14,133.03,100.0]
[1719151976577,7.516,133.05,133.03,100.0]
[1719151976781,18.7843,133.09,133.03,100.0]
[1719151977080,7.5165,133.04,133.0,6.314]
[1719151977291,7.5144,133.08,133.04,100.0]
[1719151977503,18.7801,133.12,133.06,100.0]
[1719151977504,7.5137,133.09,133.06,100.0]
[1719151977716,7.5132,133.1,133.06,100.0]
[1719151977916,7.5137,133.09,133.06,100.0]
[1719151978090,18.7791,133.13,133.07,100.0]
[1719151978290,20.0,133.14,133.09,100.0]
[1719151978500,20.0,133.15,133.11,100.0]
[1719151978706,20.0,133.18,133.07,200.0]
[1719151978993,7.5132,133.1,133.07,100.0]
[1719151979208,18.7739,133.17,133.1,100.0]
[1719151979514,7.5115,133.13,133.1,100.0]
[1719151979708,37.5328,133.22,133.1,100.0]
[1719151979709,18.7685,133.21,133.1,200.0]
[1719151979909,7.5092,133.17,133.13,100.0]
[1719151980109,7.5086,133.18,133.15,100.0]
[1719151980496,7.5087,133.18,133.15,100.0]
[1719151980918,15.33960974,133.19,133.15,100.0]
[1719151981092,7.83140974,133.19,133.18,100.0]
[1719151981296,7.5076,133.2,133.16,100.0]
[1719151981809,7.5076,133.2,133.18,100.0]
[1719151982208,7.507,133.21,133.18,100.0]
[1719151982390,15.33556819,133.22,133.2,100.0]
[1719151982722,7.5069,133.21,133.2,100.0]
[1719151983093,15.33546819,133.22,133.2,100.0]
[1719151983509,7.5069,133.21,133.2,100.0]
[1719151984009,7.5064,133.22,133.2,100.0]
[1719151984207,7.5058,133.23,133.2,100.0]
[1719151984612,7.82739566,133.24,133.18,100.0]
[1719151985015,7.5064,133.22,133.18,100.0]
[1719151985215,7.82739566,133.24,133.18,100.0]
[1719151985425,7.5093,133.17,133.14,100.0]
[1719151985929,7.5097,133.16,133.14,100.0]
[1719151986240,18.7683,133.21,133.14,100.0]
[1719151986424,20.0,133.2,133.14,100.0]
[1719151986904,20.0,133.2,133.18,100.0]
[1719151987104,20.0,133.23,133.18,100.0]
[1719151987406,7.5079,133.2,133.18,100.0]
[1719151987925,18.7661,133.22,133.16,100.0]
[1719151988423,7.5082,133.19,133.16,100.0]
[1719151989221,7.508,133.2,133.16,100.0]
[1719151989610,7.5065,133.22,133.2,100.0]
[1719151989812,7.5058,133.23,133.2,100.0]
[1719151990009,7.5064,133.22,133.2,100.0]
[1719151990710,7.82739566,133.24,133.2,100.0]
[1719151991026,7.5059,133.23,133.2,100.0]
[1719151993023,7.5059,133.23,133.22,100.0]
[1719151993230,7.5053,133.24,133.22,100.0]
[1719151993728,7.5052,133.24,133.22,100.0]
[1719151994523,7.5048,133.25,133.24,100.0]